bitfinex-derivatives/quotes_SOLF0:USTF0_20250329
["timestamp","ask_amount","ask_price","bid_price","bid_amount"]
[1743245491888,0.055327,125.78,125.75,29.35034189]
[1743245492696,0.055327,125.78,125.76,62.0]
[1743245496704,14.36554331,125.78,125.76,62.0]
[1743245497698,14.36554331,125.78,125.75,0.05034189]
[1743245498101,0.055327,125.78,125.75,29.41034189]
[1743245500799,8.009527,125.78,125.76,62.0]
[1743245501503,7.9548,125.77,125.76,62.0]
[1743245501803,14.31021631,125.77,125.75,0.05034189]
[1743245502201,22.26521631,125.77,125.75,0.05034189]
[1743245502399,0.055327,125.78,125.75,0.05034189]
[1743245502797,8.009627,125.78,125.75,0.05034189]
[1743245504502,0.055327,125.78,125.75,0.05034189]
[1743245504905,7.9551,125.77,125.75,0.05034189]
[1743245506107,7.9554,125.76,125.75,0.05034189]
[1743245510506,14.31021631,125.77,125.75,0.05034189]
[1743245511009,7.9554,125.76,125.75,0.05034189]
[1743245518430,7.9554,125.76,125.71,33.4589]
[1743245518631,7.9561,125.75,125.72,7.9574]
[1743245519232,7.9561,125.75,125.73,62.0]
[1743245519432,8.007338,125.75,125.73,62.0]
[1743245519734,7.9567,125.74,125.73,62.0]
[1743245519932,7.9567,125.74,125.72,0.05738314]
[1743245520127,14.36145431,125.75,125.72,0.05738314]
[1743245520532,7.9568,125.74,125.72,0.05738314]
[1743245521238,14.36145431,125.75,125.72,0.05738314]
[1743245521734,7.9573,125.73,125.72,0.05738314]
[1743245523630,7.9595,125.7,125.68,2.1559]
[1743245523834,14.31021631,125.73,125.68,2.1559]
[1743245524235,7.9585,125.72,125.68,2.1559]
[1743245524436,14.31021631,125.75,125.68,2.1559]
[1743245524939,0.05922419,125.73,125.7,0.05521677]
[1743245525133,14.3694405,125.73,125.7,0.05521677]
[1743245526141,7.9586,125.71,125.7,0.05521677]
[1743245529938,14.31021631,125.71,125.65,9.9769]
[1743245530140,14.31021631,125.71,125.66,29.2]
[1743245530540,14.31021631,125.69,125.58,14.31021631]
[1743245530838,9.19575505,125.66,125.61,11.23385505]
[1743245531036,7.9624,125.65,125.62,37.1639]
[1743245531238,9.19575505,125.64,125.62,0.05585975]
[1743245531540,0.057454,125.65,125.63,9.19575505]
[1743245531735,9.19575505,125.68,125.63,9.19575505]
[1743245531934,9.19575505,125.69,125.64,38.39575505]
[1743245532131,9.19575505,125.68,125.64,29.2]
[1743245532334,9.19575505,125.67,125.64,29.2]
[1743245532735,17.15805505,125.66,125.64,29.2]
[1743245532940,17.15805505,125.66,125.65,62.0]
[1743245533134,7.9623,125.66,125.65,62.0]
[1743245533331,7.9623,125.66,125.64,29.25020861]
[1743245533944,17.15815505,125.65,125.64,0.05020861]
[1743245534432,9.19575505,125.65,125.61,2.0381]
[1743245534637,9.19575505,125.64,125.61,2.0381]
[1743245534837,14.37078702,125.67,125.61,2.0381]
[1743245535436,14.37078702,125.67,125.63,0.05856374]
[1743245535641,0.06075622,125.65,125.63,0.05856374]
[1743245536642,8.02345622,125.65,125.63,0.05856374]
[1743245537246,7.963,125.64,125.63,0.05856374]
[1743245542046,0.06075622,125.65,125.63,0.05856374]
[1743245542246,43.59078702,125.7,125.63,14.42935076]
[1743245542447,7.9602,125.69,125.65,7.9621]
[1743245542648,14.37078702,125.7,125.65,7.9621]
[1743245542846,87.39515558,125.72,125.63,14.37078702]
[1743245543047,7.9596,125.7,125.65,7.9619]
[1743245543350,87.39515558,125.72,125.65,7.9619]
[1743245543351,87.39515558,125.72,125.65,37.1819]
[1743245543545,0.05200643,125.69,125.66,0.05344677]
[1743245543744,8.01210643,125.69,125.66,0.05344677]
[1743245544049,0.05200643,125.69,125.66,8.01514677]
[1743245545248,0.05200643,125.69,125.66,70.01514677]
[1743245545651,0.05200643,125.69,125.67,7.961]
[1743245546152,0.05200643,125.69,125.66,10.07304677]
[1743245546355,0.05200643,125.69,125.66,2.11154677]
[1743245546950,0.05200643,125.69,125.67,7.9608]
[1743245547351,0.05200643,125.69,125.66,2.11154677]
[1743245547551,0.05200643,125.69,125.67,7.9607]
[1743245548953,0.05200643,125.69,125.67,69.9607]
[1743245549349,0.05200643,125.69,125.67,62.0]
[1743245549653,0.05200643,125.69,125.66,2.11154677]
[1743245549855,0.05200643,125.69,125.66,10.07284677]
[1743245550655,0.05200643,125.69,125.66,2.11154677]
[1743245551160,262.44,125.73,125.66,2.11154677]
[1743245551452,7.958,125.72,125.66,2.11154677]
[1743245551755,7.958,125.72,125.69,7.9598]
[1743245552147,7.958,125.72,125.7,7.9592]
[1743245552352,0.05601605,125.72,125.69,0.0563095]
[1743245552557,0.05601605,125.72,125.69,62.0563095]
[1743245553755,0.05601605,125.72,125.71,7.9586]
[1743245554551,0.05601605,125.72,125.7,7.9589]
[1743245554751,14.37078702,125.76,125.71,29.22]
[1743245554952,7.9564,125.75,125.71,46.3598649]
[1743245555753,17.1371649,125.76,125.72,17.1394649]
[1743245555959,0.06073602,125.74,125.72,9.23656046]
[1743245556553,0.06073602,125.74,125.72,0.05499556]
[1743245557259,8.01773602,125.74,125.72,0.05499556]
[1743245557653,8.01773602,125.74,125.73,62.0]
[1743245557959,9.1815649,125.77,125.73,71.1815649]
[1743245558158,9.1815649,125.77,125.73,62.0]
[1743245558358,7.9559,125.76,125.73,62.0]
[1743245558954,17.1366649,125.77,125.73,62.0]
[1743245559160,0.0581524,125.76,125.73,71.24150881]
[1743245559560,0.0581524,125.76,125.73,79.19830881]
[1743245559760,0.0581524,125.76,125.73,71.24150881]
[1743245560260,271.7415649,125.79,125.74,38.3815649]
[1743245560656,279.6954649,125.79,125.75,7.9561]
[1743245560863,271.7415649,125.79,125.75,7.9561]
[1743245561462,0.05002687,125.78,125.76,0.05858323]
[1743245561962,8.00422687,125.78,125.76,0.05858323]
[1743245562562,7.9548,125.77,125.76,0.05858323]
[1743245562762,17.1363649,125.77,125.76,0.05858323]
[1743245563561,7.9548,125.77,125.76,0.05858323]
[1743245566363,17.1363649,125.77,125.76,0.05858323]
[1743245566762,9.23159177,125.78,125.76,0.05858323]
[1743245568667,17.18609177,125.78,125.76,0.05858323]
[1743245569168,7.9548,125.77,125.76,0.05858323]
[1743245575668,17.1363649,125.77,125.76,0.05858323]
[1743245575874,9.1815649,125.77,125.72,40.4352649]
[1743245576070,9.1815649,125.77,125.73,9.1815649]
[1743245576472,7.9558,125.76,125.73,17.1387649]
[1743245576971,7.9558,125.76,125.73,17.18902537]
[1743245577676,7.9558,125.76,125.74,7.9566]
[1743245578578,7.9558,125.76,125.73,17.18882537]
[1743245578776,7.9558,125.76,125.74,62.0]
[1743245580179,7.9561,125.75,125.74,62.0]
[1743245580677,9.23159177,125.78,125.74,62.0]
[1743245580876,7.9549,125.77,125.74,62.0]
[1743245581179,7.9549,125.77,125.74,69.9566]
[1743245582382,8.00432687,125.78,125.75,7.9561]
[1743245582680,0.05002687,125.78,125.76,9.1815649]
[1743245582881,0.05002687,125.78,125.77,9.1815649]
[1743245583075,7.9526,125.81,125.77,17.1358649]
[1743245583280,7.9526,125.81,125.78,9.1815649]
[1743245583480,7.9526,125.81,125.76,0.05795912]
[1743245583680,7.9526,125.81,125.78,17.1351649]
[1743245583875,9.1815649,125.82,125.78,9.1815649]
[1743245584085,159.12821388,125.85,125.82,9.1815649]
[1743245584279,155.82731388,125.85,125.84,9.1815649]
[1743245584476,144.68404149,125.85,125.84,9.1815649]
[1743245584671,0.05009017,125.85,125.84,17.1319649]
[1743245584872,197.6715668,125.86,125.84,9.1815649]
[1743245585076,185.2824668,125.86,125.85,9.1815649]
[1743245585276,185.2824668,125.86,125.85,17.1312649]
[1743245585682,173.2996668,125.86,125.85,79.1312649]
[1743245586779,0.05727317,125.87,125.86,7.9491]
[1743245586981,0.05727317,125.87,125.86,51.43595376]
[1743245588485,0.05727317,125.87,125.86,43.48685376]
[1743245588678,0.05727317,125.87,125.86,29.18]
[1743245588876,0.05727317,125.87,125.85,69.9496]
[1743245589187,0.05727317,125.87,125.85,99.1296]
[1743245589582,0.05727317,125.87,125.86,7.9491]
[1743245589982,0.05727317,125.87,125.85,91.18]
[1743245590387,0.05727317,125.87,125.85,99.1295]
[1743245592088,0.05727317,125.87,125.85,91.18]
[1743245592486,0.05727317,125.87,125.83,29.21133916]
[1743245592792,7.9491,125.86,125.83,29.21133916]
[1743245592989,0.05727317,125.87,125.83,0.05133916]
[1743245593588,7.9504,125.84,125.83,0.05133916]
[1743245593783,0.05727317,125.87,125.83,0.05133916]
[1743245594086,7.9501,125.85,125.83,0.05133916]
[1743245594886,7.9504,125.84,125.83,0.05133916]
[1743245595389,7.9504,125.84,125.83,62.05133916]
[1743245595585,7.95,125.85,125.83,62.05133916]
[1743245596783,7.9504,125.84,125.83,62.05133916]
[1743245596988,7.9504,125.84,125.83,0.05133916]
[1743245597689,14.30685376,125.85,125.8,29.16]
[1743245597986,2.0737,125.84,125.78,22.26085376]
[1743245598192,2.0737,125.84,125.77,1.38295547]
[1743245598392,2.0737,125.84,125.78,29.16]
[1743245598692,7.952,125.82,125.78,37.1138]
[1743245598895,8.00373211,125.82,125.8,0.05032402]
[1743245599895,7.9523,125.81,125.8,62.05032402]
[1743245600094,0.05173211,125.82,125.8,0.05032402]
[1743245600584,8.00383211,125.82,125.8,0.05032402]
[1743245600987,0.05173211,125.82,125.8,0.05032402]
[1743245601188,0.05173211,125.82,125.8,29.21032402]
[1743245601895,0.05173211,125.82,125.81,7.9523]
[1743245602689,0.00043211,125.82,125.81,7.9523]
[1743245602894,33.4263,125.9,125.81,14.30685376]
[1743245603095,7.9488,125.87,125.82,62.0]
[1743245603286,7.9488,125.87,125.83,37.1107]
[1743245603489,7.9488,125.87,125.83,29.16]
[1743245603997,7.9492,125.86,125.83,37.1108]
[1743245604295,8.00818206,125.86,125.84,0.0559864]
[1743245605694,7.9497,125.85,125.84,0.0559864]
[1743245606697,7.9497,125.85,125.84,62.0559864]
[1743245607200,7.9497,125.85,125.84,0.0559864]
[1743245610197,7.9497,125.85,125.84,62.0559864]
[1743245611097,7.9497,125.85,125.84,0.0559864]
[1743245611692,7.9514,125.83,125.81,29.16]
[1743245611900,7.9514,125.83,125.81,38.32433179]
[1743245612100,7.9512,125.83,125.81,38.32433179]
[1743245612300,9.16433179,125.85,125.81,38.32433179]
[1743245612500,9.16433179,125.84,125.81,29.16]
[1743245613001,9.21625612,125.84,125.81,29.21651411]
[1743245613199,7.9516,125.82,125.81,0.05651411]
[1743245614898,7.9524,125.81,125.79,9.16433179]
[1743245615098,7.9524,125.81,125.78,46.27813179]
[1743245615396,7.9524,125.81,125.79,9.16433179]
[1743245615601,7.9519,125.82,125.79,9.16433179]
[1743245616104,0.05178633,125.82,125.79,9.22268603]
[1743245616301,9.21611812,125.82,125.79,0.05835424]
[1743245616704,7.9527,125.81,125.79,0.05835424]
[1743245617802,7.9529,125.8,125.79,0.05835424]
[1743245618200,7.9554,125.76,125.75,1.38317534]
[1743245618505,9.16433179,125.77,125.72,131.87749758]
[1743245618703,9.16433179,125.77,125.73,156.94287114]
[1743245618704,17.11933179,125.77,125.73,156.94287114]
[1743245618901,9.16433179,125.79,125.74,62.1866312]
[1743245619105,9.16433179,125.82,125.74,29.16]
[1743245619302,9.16433179,125.81,125.73,56.85074987]
[1743245619501,9.16433179,125.76,125.75,0.0581059]
[1743245619799,7.9566,125.75,125.73,56.85074987]
[1743245619997,2.1384,125.77,125.74,9.16433179]
[1743245620197,9.16433179,125.76,125.73,56.85074987]
[1743245620603,7.9561,125.75,125.73,56.85074987]
[1743245620803,0.0548372,125.76,125.74,38.70433179]
[1743245621111,0.0548372,125.76,125.75,62.0]
[1743245623512,0.0548372,125.76,125.75,76.33734204]
[1743245624209,0.0548372,125.76,125.75,84.29344204]
[1743245625403,0.0548372,125.76,125.75,69.9561]
[1743245626008,2.0345,125.81,125.78,7.9539]
[1743245626308,2.0345,125.81,125.78,29.52]
[1743245627112,2.09028521,125.81,125.78,37.52816867]
[1743245629008,10.04268521,125.81,125.78,29.57446867]
[1743245629209,2.09028521,125.81,125.78,91.57446867]
[1743245629713,7.9533,125.8,125.78,91.57446867]
[1743245629912,2.09028521,125.81,125.78,91.57446867]
[1743245630413,7.9535,125.79,125.78,91.57446867]
[1743245630708,7.9535,125.79,125.78,0.05446867]
[1743245631708,7.9549,125.77,125.73,14.33734204]
[1743245632006,7.9549,125.77,125.75,29.56]
[1743245632811,2.0345,125.81,125.75,29.56]
[1743245633014,0.05905915,125.77,125.75,43.94989806]
[1743245633620,0.05905915,125.77,125.76,62.0]
[1743245634006,0.05905915,125.77,125.76,69.9554]
[1743245635003,0.05905915,125.77,125.76,62.0]
[1743245636114,0.05905915,125.77,125.76,69.9554]
[1743245637118,0.05905915,125.77,125.76,62.0]
[1743245637813,0.05905915,125.77,125.76,69.9554]
[1743245639818,0.05905915,125.77,125.76,62.0]
[1743245640608,0.05905915,125.77,125.76,69.9554]
[1743245640818,14.33734204,125.85,125.76,62.0]
[1743245641013,2.1454,125.84,125.77,14.33734204]
[1743245641212,7.952,125.82,125.79,7.9532]
[1743245641413,2.1454,125.84,125.78,29.46]
[1743245641716,7.9519,125.82,125.78,37.4136]
[1743245641922,8.00331992,125.82,125.8,0.05657509]
[1743245642521,0.05141992,125.82,125.81,29.46]
[1743245642909,0.05141992,125.82,125.81,37.4123]
[1743245644216,0.05141992,125.82,125.81,99.4123]
[1743245646121,0.05141992,125.82,125.81,113.74964204]
[1743245648626,1.992e-05,125.82,125.81,113.74964204]
[1743245648822,2.1438,125.88,125.85,7.9493]
[1743245649020,10.0919,125.88,125.86,29.4]
[1743245649218,2.1438,125.88,125.87,7.9485]
[1743245649525,2.0608,125.93,125.86,29.4]
[1743245649724,7.9467,125.9,125.87,7.9481]
[1743245649921,0.05905228,125.91,125.88,0.06085923]
[1743245650125,0.05905228,125.91,125.89,29.4]
[1743245650325,0.05905228,125.91,125.9,7.9466]
[1743245652023,0.05905228,125.91,125.9,69.9466]
[1743245654531,0.05905228,125.91,125.9,99.3066]
[1743245655524,7.947,125.9,125.88,0.06085923]
[1743245655730,14.33734204,125.9,125.83,14.33734204]
[1743245655929,16.42264204,125.9,125.84,29.44]
[1743245656133,7.949,125.87,125.84,29.44]
[1743245656334,2.0853,125.9,125.84,29.44]
[1743245656830,2.0853,125.9,125.85,14.33734204]
[1743245657134,0.05198687,125.88,125.86,0.05334744]
[1743245657334,0.05198687,125.88,125.87,29.42]
[1743245660436,7.99978687,125.88,125.87,29.42]
[1743245665635,0.05198687,125.88,125.87,29.42]
[1743245666334,7.99978687,125.88,125.87,29.42]
[1743245666539,0.05198687,125.88,125.87,29.42]
[1743245668531,7.9478,125.89,125.87,29.42]
[1743245668737,11.5572823,126.02,125.88,14.33734204]
[1743245668939,2.1538,125.97,125.9,22.28364204]
[1743245669137,2.1538,125.97,125.91,29.46]
[1743245669436,2.0061,125.96,125.91,29.46]
[1743245669628,2.0061,125.96,125.91,37.4058]
[1743245669826,0.05180084,125.95,125.92,0.05448892]
[1743245670538,0.05180084,125.95,125.92,7.99968892]
[1743245670840,0.05180084,125.95,125.92,14.39183096]
[1743245671035,0.05180084,125.95,125.94,7.9441]
[1743245671236,0.05180084,125.95,125.94,37.3841]
[1743245673134,0.05180084,125.95,125.94,51.72144204]
[1743245673736,2.0054,126.01,125.97,7.9418]
[1743245674039,9.9451,126.01,125.98,29.42]
[1743245674643,2.0054,126.01,125.98,29.42]
[1743245675035,2.06428311,126.01,125.98,29.47032815]
[1743245675837,10.00418311,126.01,125.98,29.47032815]
[1743245677430,7.9404,126.0,125.98,29.47032815]
[1743245677632,2.06428311,126.01,125.98,0.05032815]
[1743245677841,2.06428311,126.01,125.96,29.36]
[1743245678043,7.9406,126.0,125.96,37.3028]
[1743245678345,7.9406,126.0,125.96,29.36]
[1743245678844,10.00418311,126.01,125.97,0.05039537]
[1743245679246,7.9403,126.0,125.97,0.05039537]
[1743245680538,2.06428311,126.01,125.97,0.05039537]
[1743245681944,7.9406,126.0,125.97,0.05039537]
[1743245684248,10.00418311,126.01,125.97,7.99249537]
[1743245684846,7.9404,126.0,125.97,0.05039537]
[1743245685141,2.06428311,126.01,125.97,0.05039537]
[1743245685346,7.9409,125.99,125.97,0.05039537]
[1743245687447,7.9415,125.98,125.97,0.05039537]
[1743245690053,7.9412,125.99,125.97,0.05039537]
[1743245690455,2.06428311,126.01,125.97,0.05039537]
[1743245693262,7.9415,125.98,125.97,0.05039537]
[1743245695765,7.9412,125.99,125.97,0.05039537]
[1743245696667,7.9415,125.98,125.97,0.05039537]
[1743245698671,7.9422,125.97,125.96,29.36]
[1743245701771,0.05474728,125.98,125.96,43.69734204]
[1743245702266,0.05474728,125.98,125.96,51.63984204]
[1743245702859,7.99634728,125.98,125.96,43.69734204]
[1743245703470,7.9422,125.97,125.96,29.36]
[1743245703772,0.05474728,125.98,125.95,29.20027272]
[1743245704071,7.9428,125.96,125.95,29.20027272]
[1743245706973,7.9425,125.97,125.95,29.20027272]
[1743245711978,7.9428,125.96,125.95,29.20027272]
[1743245714878,7.9428,125.96,125.95,38.34822746]
[1743245715078,7.9428,125.96,125.95,9.20822746]
[1743245715279,7.9428,125.96,125.95,38.34822746]
[1743245715579,7.9424,125.97,125.95,38.34822746]
[1743245715780,0.05474728,125.98,125.95,38.34822746]
[1743245716879,7.9428,125.96,125.95,29.20027272]
[1743245717080,9.14795474,125.96,125.92,38.28795474]
[1743245717376,7.9448,125.93,125.92,38.28795474]
[1743245717980,7.9444,125.94,125.92,38.28795474]
[1743245718181,8.00367402,125.94,125.93,9.14795474]
[1743245718380,0.05927402,125.94,125.93,9.14795474]
[1743245718982,0.05927402,125.94,125.93,17.09265474]
[1743245719175,0.05927402,125.94,125.93,9.14795474]
[1743245719983,8.00337402,125.94,125.93,71.14795474]
[1743245720185,0.05927402,125.94,125.93,71.14795474]
[1743245720883,0.05927402,125.94,125.93,62.0]
[1743245722586,8.00337402,125.94,125.93,62.0]
[1743245723084,0.05927402,125.94,125.92,29.14]
[1743245723275,8.00347402,125.94,125.92,29.14]
[1743245726086,8.00347402,125.94,125.93,62.0]
[1743245726286,7.9453,125.92,125.91,0.05317262]
[1743245729882,7.945,125.93,125.91,0.05317262]
[1743245731487,0.05927402,125.94,125.91,0.05317262]
[1743245731884,0.05927402,125.94,125.92,7.945]
[1743245732085,0.05927402,125.94,125.93,29.14]
[1743245732785,0.05927402,125.94,125.93,37.0847]
[1743245735791,0.05927402,125.94,125.93,29.14]
[1743245736493,8.00337402,125.94,125.93,29.14]
[1743245738295,0.05927402,125.94,125.91,0.05317262]
[1743245738491,4.13707402,125.94,125.91,0.05317262]
[1743245738893,7.9453,125.92,125.91,0.05317262]
[1743245741488,7.9466,125.9,125.89,62.0]
[1743245741692,7.9466,125.9,125.87,29.14]
[1743245742194,7.9474,125.89,125.85,276.29762697]
[1743245742403,7.9474,125.89,125.86,29.14]
[1743245742595,14.29762697,125.93,125.86,29.14]
[1743245742796,8.00783728,125.89,125.86,29.19829616]
[1743245742997,0.06023728,125.89,125.86,46.30713664]
[1743245743194,0.06023728,125.89,125.88,9.16024048]
[1743245743594,0.06023728,125.89,125.88,17.10804048]
[1743245744401,0.06023728,125.89,125.88,9.16024048]
[1743245744600,0.06023728,125.89,125.88,71.16024048]
[1743245745996,0.06023728,125.89,125.88,62.0]
[1743245746191,0.06023728,125.89,125.86,29.19829616]
[1743245746400,0.06023728,125.89,125.86,38.35853664]
[1743245747197,0.06023728,125.89,125.86,9.21853664]
[1743245747400,0.06023728,125.89,125.86,38.35853664]
[1743245747603,8.00773728,125.89,125.86,46.30743664]
[1743245748704,0.06023728,125.89,125.87,17.10834048]
[1743245748899,0.06023728,125.89,125.88,9.16024048]
[1743245749405,0.06023728,125.89,125.87,71.16024048]
[1743245749906,8.00763728,125.89,125.87,62.0]
[1743245750403,0.06023728,125.89,125.87,62.0]
[1743245751103,0.06023728,125.89,125.87,69.9484]
[1743245751504,0.06023728,125.89,125.88,9.16024048]
[1743245752005,0.06023728,125.89,125.88,17.10804048]
[1743245753203,0.06023728,125.89,125.88,9.16024048]
[1743245753398,0.06023728,125.89,125.87,71.16024048]
[1743245753602,8.00793728,125.89,125.87,71.16024048]
[1743245754106,7.9478,125.88,125.86,29.19829616]
[1743245754302,0.06023728,125.89,125.86,29.19829616]
[1743245754701,7.9482,125.88,125.86,29.19829616]
[1743245755205,7.9485,125.87,125.86,0.05829616]
[1743245755404,9.22047776,125.89,125.86,0.05829616]
[1743245755799,7.9482,125.88,125.86,0.05829616]
[1743245757010,17.16787776,125.89,125.86,0.05829616]
[1743245757199,17.16787776,125.89,125.86,62.05829616]
[1743245757604,8.00763728,125.89,125.86,62.05829616]
[1743245758010,7.9478,125.88,125.86,62.05829616]
[1743245758210,0.06023728,125.89,125.86,62.05829616]
[1743245758611,7.9482,125.88,125.86,62.05829616]
[1743245758811,0.06023728,125.89,125.86,62.05829616]
[1743245759013,0.06023728,125.89,125.86,70.00709616]
[1743245759709,8.00773728,125.89,125.86,70.00709616]
[1743245759908,0.06023728,125.89,125.86,70.00709616]
[1743245760208,9.16024048,125.87,125.86,9.616e-05]
[1743245760416,229.99990384,125.86,125.75,88.33941543]
[1743245760709,9.16024048,125.79,125.75,88.33941543]
[1743245760914,17.11384048,125.79,125.75,88.33941543]
[1743245761115,9.16024048,125.78,125.75,88.33941543]
[1743245761504,17.16854532,125.78,125.76,33.07768991]
[1743245761911,17.11504048,125.77,125.76,33.07768991]
[1743245762115,17.11504048,125.77,125.76,26.48308991]
[1743245762315,17.11504048,125.77,125.76,23.18588991]
[1743245762910,7.9548,125.77,125.76,23.18588991]
[1743245763814,7.9548,125.77,125.72,267.40261024]
[1743245763815,7.9564,125.75,125.7,29.48]
[1743245764510,14.3467164,125.78,125.7,29.48]
[1743245764511,7.9569,125.74,125.7,29.48]
[1743245765020,0.05142932,125.73,125.71,0.05718462]
[1743245766913,0.05142932,125.73,125.72,62.0]
[1743245768018,0.05142932,125.73,125.71,0.05718462]
[1743245768418,14.3467164,125.72,125.65,1.38405552]
[1743245768621,14.3467164,125.72,125.65,29.48]
[1743245768814,14.3467164,125.7,125.63,33.6518]
[1743245769010,7.9616,125.67,125.63,33.6518]
[1743245769210,16.4661164,125.72,125.63,33.6518]
[1743245769416,16.4661164,125.72,125.63,47.9985164]
[1743245769619,7.9609,125.68,125.66,0.0315428]
[1743245769925,0.05391676,125.69,125.66,0.0315428]
[1743245770716,7.961,125.68,125.66,0.0315428]
[1743245770921,0.05391676,125.69,125.66,0.0315428]
[1743245771124,0.05391676,125.69,125.66,62.0315428]
[1743245771418,7.9611,125.67,125.66,62.0315428]
[1743245771625,14.3467164,125.68,125.61,14.3467164]
[1743245771821,7.9635,125.64,125.6,29.92]
[1743245772523,7.9626,125.65,125.6,37.8855]
[1743245772716,14.3467164,125.68,125.61,14.3467164]
[1743245772921,0.05161512,125.64,125.61,16.3795164]
[1743245773122,0.05998879,125.66,125.63,14.3467164]
[1743245773320,0.05998879,125.66,125.64,29.7230402]
[1743245774627,0.05998879,125.66,125.65,62.0]
[1743245775028,16.4661164,125.72,125.65,62.0]
[1743245775923,16.4661164,125.72,125.65,69.9623]
[1743245776122,16.4661164,125.72,125.65,62.0]
[1743245776428,7.9605,125.68,125.67,0.05265266]
[1743245776828,22.3072164,125.68,125.67,0.05265266]
[1743245777422,7.963,125.64,125.62,30.1]
[1743245777629,14.3467164,125.68,125.62,30.1]
[1743245777930,7.9628,125.65,125.62,30.1]
[1743245778625,8.01497575,125.65,125.62,30.1]
[1743245779719,0.05217575,125.65,125.63,7.9636]
[1743245780026,0.05217575,125.65,125.62,106.4467164]
[1743245780227,0.05217575,125.65,125.62,108.4437164]
[1743245780729,0.05217575,125.65,125.63,7.9631]
[1743245780929,0.05217575,125.65,125.62,108.4437164]
[1743245781129,0.05217575,125.65,125.63,7.9631]
[1743245781329,0.05217575,125.65,125.62,108.4437164]
[1743245781831,0.05217575,125.65,125.64,7.963]
[1743245782732,0.05217575,125.65,125.63,7.9634]
[1743245782932,0.05217575,125.65,125.62,94.097]
[1743245783428,0.05217575,125.65,125.64,7.963]
[1743245785235,0.05217575,125.65,125.62,63.997]
[1743245785426,0.05217575,125.65,125.63,30.12]
[1743245786429,0.05217575,125.65,125.63,38.0835]
[1743245786626,0.05217575,125.65,125.63,30.12]
[1743245787234,0.05217575,125.65,125.63,38.0831]
[1743245788531,0.05217575,125.65,125.64,7.963]
[1743245788727,0.05217575,125.65,125.63,30.12]
[1743245790030,0.05217575,125.65,125.63,38.0833]
[1743245790436,0.05217575,125.65,125.63,30.12]
[1743245791139,378.3467164,125.74,125.64,14.3467164]
[1743245791331,378.3467164,125.74,125.66,14.3467164]
[1743245791532,14.3467164,125.74,125.67,30.1]
[1743245792341,0.05071937,125.72,125.69,0.05331456]
[1743245792636,14.3467164,125.7,125.69,0.05331456]
[1743245792936,14.3467164,125.7,125.62,62.0]
[1743245792937,28.6934328,125.7,125.62,62.0]
[1743245793132,14.3467164,125.67,125.62,92.12]
[1743245793438,7.9634,125.64,125.62,92.12]
[1743245793941,0.05034909,125.64,125.62,92.12]
[1743245795234,0.05034909,125.64,125.62,100.084]
[1743245795436,0.05034909,125.64,125.62,92.12]
[1743245796348,0.05034909,125.64,125.62,100.084]
[1743245796640,0.05034909,125.64,125.62,62.0]
[1743245796943,0.05034909,125.64,125.63,30.06]
[1743245801940,0.05034909,125.64,125.62,92.02]
[1743245802142,0.05034909,125.64,125.61,30.1]
[1743245802443,14.3467164,125.63,125.57,2.1742]
[1743245802646,14.3467164,125.61,125.54,16.3870164]
[1743245802846,14.3467164,125.61,125.55,30.16]
[1743245803043,7.9666,125.59,125.55,30.16]
[1743245803241,0.05049247,125.61,125.55,30.16]
[1743245803442,0.05578356,125.58,125.55,30.16]
[1743245804343,0.05578356,125.58,125.56,14.3467164]
[1743245804544,0.05578356,125.58,125.56,7.968]
[1743245804744,0.05578356,125.58,125.55,30.16]
[1743245805147,0.05578356,125.58,125.56,69.968]
[1743245805447,0.05578356,125.58,125.56,62.0]
[1743245805647,0.05578356,125.58,125.56,69.9681]
[1743245805848,0.05578356,125.58,125.56,62.0]
[1743245806549,7.9675,125.57,125.56,62.0]
[1743245807047,0.05578356,125.58,125.56,62.0]
[1743245807848,0.05578356,125.58,125.56,69.9677]
[1743245808047,0.05578356,125.58,125.56,62.0]
[1743245808246,14.3467164,125.63,125.56,76.3467164]
[1743245808451,7.9647,125.62,125.57,7.9672]
[1743245808646,14.3467164,125.63,125.58,30.48]
[1743245809240,14.3467164,125.63,125.59,0.05478887]
[1743245809447,0.05575201,125.62,125.59,0.05478887]
[1743245809642,7.9653,125.61,125.59,0.05478887]
[1743245810047,0.05575201,125.62,125.59,0.05478887]
[1743245810450,14.3467164,125.61,125.59,0.05478887]